bitfinex-derivatives/quotes_BNBF0:USTF0_20250609
["timestamp","ask_amount","ask_price","bid_price","bid_amount"]
[1749429739475,1.879,652.45,651.72,3.83243957]
[1749429739871,0.26686196,652.46,651.72,3.83243957]
[1749429740477,0.26686196,652.46,651.78,3.83243957]
[1749429740874,0.26686196,652.46,651.77,3.83243957]
[1749429741772,0.26686196,652.46,651.78,3.83243957]
[1749429742278,0.26686196,652.46,651.79,3.83243957]
[1749429742673,0.26686196,652.46,651.78,3.83243957]
[1749429743073,2.31773897,653.2,651.77,3.83243957]
[1749429743377,1.14507231,653.25,651.77,3.83243957]
[1749429743378,0.26670448,652.56,651.77,3.83243957]
[1749429743874,1.789,652.55,651.77,3.83243957]
[1749429744474,1.789,652.55,651.78,3.83243957]
[1749429744873,1.789,652.55,651.77,3.83243957]
[1749429747082,1.789,652.55,651.78,3.83243957]
[1749429747577,1.789,652.55,651.75,3.83243957]
[1749429747982,1.789,652.55,651.8,3.83243957]
[1749429748882,1.789,652.55,651.79,3.83243957]
[1749429749479,1.789,652.55,651.58,5.3654154]
[1749429749480,1.789,652.55,651.8,3.83243957]
[1749429750782,1.789,652.55,651.76,3.83243957]
[1749429751185,1.789,652.55,651.77,3.83243957]
[1749429752487,1.789,652.55,651.75,3.83243957]
[1749429752984,1.789,652.55,651.84,3.83243957]
[1749429753788,1.789,652.55,651.85,3.83243957]
[1749429754287,1.789,652.55,651.84,3.83243957]
[1749429754886,1.789,652.55,651.85,3.83243957]
[1749429755184,1.789,652.55,651.62,5.3654154]
[1749429755185,1.789,652.55,651.78,3.83243957]
[1749429755589,1.789,652.55,651.79,3.83243957]
[1749429756186,1.789,652.55,651.78,3.83243957]
[1749429756590,1.789,652.55,651.79,3.83243957]
[1749429757386,1.789,652.55,651.75,3.83243957]
[1749429757890,1.789,652.55,651.76,3.83243957]
[1749429758686,1.789,652.55,651.77,3.83243957]
[1749429759291,1.789,652.55,651.78,3.83243957]
[1749429759689,1.789,652.55,651.8,3.83243957]
[1749429760091,1.789,652.55,651.79,3.83243957]
[1749429760591,1.789,652.55,651.71,3.83243957]
[1749429760989,1.789,652.55,651.72,3.83243957]
[1749429761990,1.789,652.55,651.75,3.83243957]
[1749429762291,1.789,652.55,651.77,3.83243957]
[1749429762889,1.789,652.55,651.74,3.83243957]
[1749429763292,1.789,652.55,651.75,3.83243957]
[1749429764789,1.789,652.55,651.76,3.83243957]
[1749429766489,1.789,652.55,651.77,3.83243957]
[1749429767896,1.789,652.55,651.78,3.83243957]
[1749429769593,1.789,652.55,651.53,5.3654154]
[1749429769594,1.789,652.55,651.79,3.83243957]
[1749429770096,1.789,652.55,651.91,3.83243957]
[1749429771498,1.789,652.55,651.94,3.83243957]
[1749429772895,0.26670448,652.56,651.91,3.83243957]
[1749429774699,0.26670448,652.56,651.92,3.83243957]
[1749429775400,0.26670448,652.56,651.93,3.83243957]
[1749429775994,1.818,652.55,651.93,3.83243957]
[1749429776895,1.818,652.55,651.94,3.83243957]
[1749429777797,1.818,652.55,651.95,3.83243957]
[1749429778600,1.818,652.55,651.94,3.83243957]
[1749429779098,1.818,652.55,651.95,3.83243957]
[1749429780498,1.818,652.55,651.9,3.83243957]
[1749429780902,1.818,652.55,651.88,3.83243957]
[1749429781402,1.818,652.55,651.87,3.83243957]
[1749429782705,1.818,652.55,651.85,3.83243957]
[1749429786009,1.818,652.55,651.82,3.83243957]
[1749429786707,1.818,652.55,651.81,3.83243957]
[1749429787310,1.818,652.55,651.57,3.83243957]
[1749429787714,1.818,652.55,651.55,3.83243957]
[1749429788111,1.818,652.55,651.56,3.83243957]
[1749429788515,1.818,652.55,651.55,3.83243957]
[1749429790518,1.818,652.55,651.49,3.83243957]
[1749429790918,1.818,652.55,651.5,3.83243957]
[1749429791817,1.818,652.55,651.48,3.83243957]
[1749429793119,1.818,652.55,651.44,3.83243957]
[1749429795021,1.818,652.55,651.43,3.83243957]
[1749429795717,1.818,652.55,651.44,3.83243957]
[1749429796221,1.818,652.55,651.43,3.83243957]
[1749429797122,1.818,652.55,651.55,3.83243957]
[1749429798425,1.818,652.55,651.56,3.83243957]
[1749429800228,1.818,652.55,651.63,3.83243957]
[1749429802932,1.818,652.55,651.85,3.83243957]
[1749429803431,1.818,652.55,651.84,3.83243957]
[1749429804033,0.26670448,652.56,651.84,3.83243957]
[1749429806032,0.26670448,652.56,651.83,3.83243957]
[1749429806933,1.884,652.55,651.83,3.83243957]
[1749429808740,1.884,652.55,651.68,3.83243957]
[1749429809837,1.884,652.55,651.67,3.83243957]
[1749429812747,1.884,652.55,651.54,3.83243957]
[1749429813645,1.884,652.55,651.58,3.83243957]
[1749429814546,1.884,652.55,651.59,3.83243957]
[1749429815842,1.884,652.55,651.6,3.83243957]
[1749429817245,1.884,652.55,651.61,3.83243957]
[1749429818748,1.884,652.55,651.81,3.83243957]
[1749429819449,1.884,652.55,651.67,3.83243957]
[1749429821352,1.884,652.55,651.69,3.83243957]
[1749429822354,1.884,652.55,651.44,5.3654154]
[1749429822552,1.884,652.55,651.45,0.30700744]
[1749429823355,1.884,652.55,651.5,3.83243957]
[1749429823550,1.884,652.55,651.51,3.83243957]
[1749429824056,1.884,652.55,651.5,3.83243957]
[1749429824459,1.884,652.55,651.51,3.83243957]
[1749429827863,0.26670448,652.56,651.51,3.83243957]
[1749429829463,0.26670448,652.56,651.54,3.83243957]
[1749429829861,0.26670448,652.56,651.55,3.83243957]
[1749429830462,1.381,652.55,651.55,3.83243957]
[1749429832065,1.381,652.55,651.78,3.83243957]
[1749429833067,1.381,652.55,651.8,3.83243957]
[1749429834767,1.381,652.55,651.81,3.83243957]
[1749429835367,1.381,652.55,651.95,3.83243957]
[1749429835764,1.381,652.55,651.96,3.83243957]
[1749429836169,1.381,652.55,651.95,3.83243957]
[1749429839272,1.381,652.55,651.96,3.83243957]
[1749429840575,1.381,652.55,651.93,3.83243957]
[1749429841574,1.381,652.55,651.95,3.83243957]
[1749429842875,1.381,652.55,651.94,3.83243957]
[1749429844173,1.381,652.55,651.93,3.83243957]
[1749429845277,1.381,652.55,651.9,3.83243957]
[1749429845572,1.381,652.55,651.91,3.83243957]
[1749429846577,1.381,652.55,651.92,3.83243957]
[1749429847877,1.381,652.55,651.82,3.83243957]
[1749429850578,1.381,652.55,651.83,3.83243957]
[1749429850977,1.381,652.55,651.82,3.83243957]
[1749429851478,0.26670448,652.56,651.82,3.83243957]
[1749429852880,0.26670448,652.56,651.75,3.83243957]
[1749429853278,0.26670448,652.56,651.74,3.83243957]
[1749429854178,1.94,652.55,651.74,3.83243957]
[1749429855082,1.94,652.55,651.75,3.83243957]
[1749429857883,1.94,652.55,651.79,3.83243957]
[1749429858482,1.94,652.55,651.78,3.83243957]
[1749429859187,1.94,652.55,651.68,3.83243957]
[1749429859579,1.94,652.55,651.65,3.83243957]
[1749429860078,1.94,652.55,651.64,3.83243957]
[1749429860484,1.94,652.55,651.45,0.30700744]
[1749429860485,1.94,652.55,651.69,3.83243957]
[1749429860984,1.94,652.55,651.46,5.3654154]
[1749429860985,1.94,652.55,651.7,3.83243957]
[1749429862885,1.94,652.55,651.69,3.83243957]
[1749429863384,1.94,652.55,651.68,3.83243957]
[1749429865886,1.94,652.55,651.67,3.83243957]
[1749429866288,1.94,652.55,651.66,3.83243957]
[1749429866788,1.94,652.55,651.51,3.83243957]
[1749429867186,1.94,652.55,651.5,3.83243957]
[1749429868188,1.94,652.55,651.49,3.83243957]
[1749429868590,1.94,652.55,651.5,3.83243957]
[1749429869090,1.94,652.55,651.56,3.83243957]
[1749429870989,1.94,652.55,651.55,3.83243957]
[1749429872190,1.94,652.55,651.54,3.83243957]
[1749429873295,1.94,652.55,651.45,0.30700744]
[1749429873296,1.94,652.55,651.57,3.83243957]
[1749429874094,1.94,652.55,651.56,3.83243957]
[1749429874894,1.94,652.55,651.55,3.83243957]
[1749429876391,1.94,652.55,651.45,0.30700744]
[1749429876392,1.94,652.55,651.47,3.83243957]
[1749429878999,1.94,652.55,651.52,3.83243957]
[1749429879896,1.94,652.55,651.58,3.83243957]
[1749429880300,1.94,652.55,651.59,3.83243957]
[1749429882301,0.26670448,652.56,651.59,3.83243957]
[1749429883204,0.26670448,652.56,651.61,3.83243957]
[1749429883998,0.26670448,652.56,651.62,3.83243957]
[1749429884602,0.26670448,652.56,651.84,3.83243957]
[1749429885002,0.26670448,652.56,651.83,3.83243957]
[1749429885204,1.854,652.55,651.83,3.83243957]
[1749429886305,1.854,652.55,651.82,3.83243957]
[1749429888902,1.854,652.55,651.83,3.83243957]
[1749429889901,1.854,652.55,651.85,3.83243957]
[1749429890303,1.854,652.55,651.91,3.83243957]
[1749429893009,1.854,652.55,651.97,3.83243957]
[1749429896205,1.854,652.55,651.96,3.83243957]
[1749429896610,1.854,652.55,651.94,3.83243957]
[1749429901116,1.854,652.55,651.73,5.3654154]
[1749429901317,1.854,652.55,651.63,3.83243957]
[1749429903118,1.854,652.55,651.54,3.83243957]
[1749429903316,0.26670448,652.56,651.54,3.83243957]
[1749429903620,0.26670448,652.56,651.45,0.30700744]
[1749429904317,1.08124366,652.55,651.45,0.30700744]
[1749429904917,1.08124366,652.54,651.45,0.30700744]
[1749429905121,1.08124366,652.53,651.45,0.30700744]
[1749429905320,1.08124366,652.52,651.45,0.30700744]
[1749429905521,1.08124366,652.51,651.45,0.30700744]
[1749429905718,1.08124366,652.55,651.45,0.30700744]
[1749429905917,1.08124366,652.54,651.45,0.30700744]
[1749429906119,0.30649931,652.53,651.45,0.30700744]
[1749429906521,1.579,652.52,651.22,0.26688856]
[1749429906820,0.30650871,652.51,651.22,0.26688856]
[1749429907021,1.38775237,652.51,651.22,0.26688856]
[1749429907318,1.08124366,652.5,651.22,0.26688856]
[1749429907518,1.38776176,652.49,650.72,3.83243957]
[1749429907718,1.38776646,652.48,650.74,0.30734241]
[1749429907919,1.38777116,652.47,651.16,0.26697456]
[1749429908221,1.38777586,652.46,651.16,0.26697456]
[1749429908418,1.38778055,652.45,651.16,0.26697456]
[1749429908624,1.38778525,652.44,651.16,0.26697456]
[1749429908820,1.38778995,652.43,651.16,0.26697456]
[1749429909020,1.38779465,652.42,651.16,0.26697456]
[1749429909325,1.38779935,652.41,651.16,0.26697456]
[1749429909525,1.38780405,652.4,651.16,0.26697456]
[1749429909725,1.38780875,652.39,651.16,0.26697456]
[1749429909921,1.38781345,652.38,651.16,0.26697456]
[1749429910125,1.38781814,652.37,651.16,0.26697456]
[1749429910421,1.08124366,652.36,651.16,0.26697456]
[1749429910624,1.08124366,652.35,651.16,0.26697456]
[1749429910821,1.08124366,652.34,651.16,0.26697456]
[1749429911024,1.08124366,652.33,651.16,0.26697456]
[1749429911224,1.08124366,652.32,651.16,0.26697456]
[1749429911425,1.08124366,652.31,651.16,0.26697456]
[1749429911620,1.08124366,652.3,651.16,0.26697456]
[1749429911922,1.08124366,652.36,651.16,0.26697456]
[1749429912119,1.38782754,652.35,651.16,0.26697456]
[1749429912321,1.08124366,652.34,651.16,0.26697456]
[1749429912620,1.08124366,652.33,651.16,0.26697456]
[1749429912820,1.08124366,652.32,651.16,0.26697456]
[1749429913025,1.08124366,652.34,651.16,0.26697456]
[1749429913821,1.08124366,652.34,650.74,0.30734241]
[1749429914222,0.26697251,652.05,651.19,0.26697251]
[1749429922625,0.26697251,652.05,651.2,0.3071253]
[1749429927827,1.705,652.04,651.2,0.3071253]
[1749429945239,1.705,652.04,651.24,3.83243957]
[1749429945743,1.705,652.04,651.3,3.83243957]
[1749429946139,1.705,652.04,651.26,3.83243957]
[1749429946537,1.705,652.04,651.27,3.83243957]
[1749429947440,1.705,652.04,651.28,3.83243957]
[1749429947844,0.26697251,652.05,651.28,3.83243957]
[1749429948343,0.26697251,652.05,651.29,3.83243957]
[1749429949346,0.26697251,652.05,651.31,3.83243957]
[1749429950345,0.26697251,652.05,651.32,3.83243957]
[1749429951146,1.807,652.04,651.27,3.83243957]
[1749429951643,1.807,652.04,651.29,3.83243957]
[1749429952146,1.807,652.04,651.28,3.83243957]
[1749429952443,1.807,652.04,651.31,3.83243957]
[1749429952946,1.807,652.04,651.21,3.83243957]
[1749429953447,1.807,652.04,651.22,3.83243957]
[1749429954248,1.807,652.04,651.24,3.83243957]
[1749429955344,1.807,652.04,651.23,3.83243957]
[1749429955543,1.807,652.04,651.26,3.83243957]
[1749429956448,1.807,652.04,651.28,3.83243957]
[1749429957347,1.807,652.04,651.3,3.83243957]
[1749429957750,1.807,652.04,651.31,3.83243957]
[1749429958246,1.807,652.04,651.34,3.83243957]
[1749429958651,1.807,652.04,651.33,3.83243957]
[1749429959552,1.807,652.04,651.25,3.83243957]
[1749429959948,1.807,652.04,651.22,3.83243957]
[1749429960553,1.807,652.04,651.21,3.83243957]
[1749429961455,1.807,652.04,651.2,0.3071253]
[1749429962152,0.26697251,652.05,651.2,0.3071253]
[1749429964755,1.225,652.04,651.2,0.3071253]
[1749429967158,1.225,652.04,651.21,3.83243957]
[1749429967864,1.225,652.04,651.2,4.13956487]
[1749429968065,1.225,652.04,651.22,3.83243957]
[1749429969061,1.225,652.04,651.24,3.83243957]
[1749429969463,1.225,652.04,651.23,3.83243957]
[1749429970466,1.225,652.04,651.2,0.3071253]
[1749429973265,1.225,652.04,651.03,3.83243957]
[1749429973566,1.225,652.04,651.0,0.26701348]
[1749429976570,1.225,652.04,650.9,3.83243957]
[1749429976767,1.225,652.04,650.89,3.83243957]
[1749429977168,1.225,652.04,650.9,3.83243957]
[1749429978173,1.225,652.04,650.93,3.83243957]
[1749429978472,1.225,652.04,650.91,3.83243957]
[1749429978672,1.225,652.04,650.78,0.26707803]
[1749429978869,1.10912958,652.03,650.78,0.26707803]
[1749429979074,2.25518871,652.02,649.93,3.83243957]
[1749429979369,1.14605913,651.98,650.41,0.26722672]
[1749429979572,1.10912958,652.0,650.43,0.30748889]
[1749429979769,1.225,652.04,650.43,0.30748889]
[1749429979770,2.33984344,652.02,650.43,0.30748889]
[1749429979970,2.33987201,652.01,650.43,0.30748889]
[1749429980172,1.10912958,652.0,650.43,0.30748889]
[1749429980371,2.33986347,652.04,650.43,0.30748889]
[1749429980570,2.30694987,652.03,650.43,0.30748889]
[1749429980772,1.10912958,652.02,650.43,0.30748889]
[1749429980974,0.30674376,652.01,650.43,0.30748889]
[1749429981271,1.41587334,652.01,650.43,0.30748889]
[1749429981474,0.30674376,652.01,650.43,0.30748889]
[1749429982076,1.314,652.0,650.43,0.30748889]
[1749429982478,0.30675787,651.98,650.43,0.30748889]
[1749429992982,1.10912958,651.97,650.43,0.30748889]
[1749429993180,1.41589686,651.96,650.43,0.30748889]
[1749429993479,1.41590157,651.95,650.43,0.30748889]
[1749429993679,1.22180292,651.98,650.43,0.30748889]
[1749429993680,1.41590627,651.94,650.43,0.30748889]
[1749429993880,1.41591098,651.93,650.43,0.30748889]
[1749429994079,1.41591568,651.92,650.43,0.30748889]
[1749429994281,1.41592039,651.91,650.43,0.30748889]
[1749429994482,1.4159251,651.9,650.43,0.30748889]
[1749429994680,1.4159298,651.89,650.43,0.30748889]
[1749429994983,0.30680493,651.88,650.43,0.30748889]
[1749429996080,1.10912958,651.87,650.43,0.30748889]
[1749429996285,1.41594392,651.86,650.43,0.30748889]
[1749429996582,1.41594863,651.85,650.43,0.30748889]
[1749429996785,1.41595334,651.84,650.43,0.30748889]
[1749429996981,1.22197822,651.99,650.43,0.30748889]
[1749429996982,1.41595804,651.83,650.43,0.30748889]
[1749429997181,1.41596275,651.82,650.43,0.30748889]
[1749429997386,0.30683317,651.82,650.43,0.30748889]
[1749429998182,1.10912958,651.81,650.43,0.30748889]
[1749429998385,0.30683317,651.82,650.43,0.30748889]
[1749430007590,0.30683317,651.82,650.45,3.83243957]
[1749430007790,0.30683317,651.82,650.46,0.30747471]
[1749430010092,1.749,651.81,650.46,0.30747471]
[1749430023205,0.30683317,651.82,650.46,0.30747471]
[1749430026002,1.496,651.81,650.46,0.30747471]
[1749430033109,1.496,651.81,650.52,3.83243957]
[1749430033512,1.496,651.81,650.53,3.83243957]
[1749430034012,1.496,651.81,650.5,3.83243957]
[1749430034209,1.496,651.81,650.51,0.30745107]
[1749430034414,1.496,651.81,650.52,3.83243957]
[1749430034914,1.496,651.81,650.51,4.13989064]
[1749430035510,1.496,651.81,650.51,0.30745107]
[1749430036814,1.496,651.81,651.26,2.29179357]
[1749430037415,1.496,651.81,651.27,2.29179357]
[1749430038215,1.496,651.81,651.28,2.29179357]
[1749430039315,1.496,651.81,651.29,2.29179357]
[1749430039712,1.496,651.81,651.28,2.29179357]
[1749430040413,1.496,651.81,651.31,2.29179357]
[1749430041419,1.496,651.81,651.41,2.29179357]
[1749430042119,1.496,651.81,651.42,2.29179357]
[1749430042516,1.496,651.81,651.41,2.29179357]
[1749430043018,1.496,651.81,651.29,2.29179357]
[1749430044418,1.496,651.81,651.3,2.29179357]
[1749430045221,1.496,651.81,651.34,2.29179357]
[1749430046024,1.496,651.81,651.35,2.29179357]
[1749430046520,1.496,651.81,651.41,2.29179357]
[1749430047522,1.496,651.81,651.43,2.29179357]
[1749430050228,1.496,651.81,651.44,2.29179357]
[1749430052025,1.496,651.81,651.42,2.29179357]
[1749430054529,1.496,651.81,651.45,2.29179357]
[1749430054932,1.496,651.81,651.44,2.29179357]
[1749430055130,1.496,651.81,651.45,2.29179357]
[1749430055729,1.496,651.81,651.43,2.29179357]
[1749430055933,1.496,651.81,651.41,2.29179357]
[1749430056131,0.30683317,651.82,651.41,2.29179357]
[1749430056830,0.30683317,651.82,651.4,2.29179357]
[1749430057332,0.30683317,651.82,651.41,2.29179357]
[1749430059629,0.30683317,651.82,651.42,2.29179357]
[1749430061931,0.30683317,651.82,650.51,0.30745107]
[1749430061932,0.30683317,651.82,651.43,2.29179357]
[1749430063634,0.30683317,651.82,651.44,2.29179357]
[1749430075245,0.30683317,651.82,651.45,2.29179357]
[1749430076149,0.30683317,651.82,651.44,2.29179357]
[1749430076350,0.30683317,651.82,651.45,2.29179357]
[1749430081849,1.351,651.81,651.45,2.29179357]
[1749430083453,1.351,651.81,651.46,2.29179357]
[1749430085957,1.351,651.81,651.42,2.29179357]
[1749430086453,1.351,651.81,651.36,2.29179357]
[1749430086658,1.351,651.81,651.38,2.29179357]
[1749430086858,1.351,651.81,651.36,2.29179357]
[1749430087256,1.351,651.81,651.37,2.29179357]
[1749430089459,1.351,651.81,651.4,2.29179357]
[1749430089760,1.351,651.81,651.46,2.29179357]
[1749430090355,1.351,651.81,651.48,2.29179357]
[1749430090557,1.351,651.81,651.47,2.29179357]
[1749430091261,1.351,651.81,651.48,2.29179357]
[1749430091457,1.351,651.81,651.45,2.29179357]
[1749430091665,1.351,651.81,651.51,2.29179357]
[1749430092260,1.351,651.81,651.52,2.29179357]
[1749430092459,1.351,651.81,650.97,3.83243957]
[1749430092460,1.351,651.81,651.51,2.29179357]
[1749430093264,1.351,651.81,650.97,3.83243957]
[1749430093265,1.351,651.81,651.52,2.29179357]
[1749430093565,1.351,651.81,651.51,2.29179357]
[1749430093864,0.26697251,652.05,651.51,2.29179357]
[1749430094462,0.26697251,652.05,651.5,2.29179357]
[1749430094662,0.26697251,652.05,651.51,2.29179357]
[1749430096362,0.26697251,652.05,650.7,5.3654154]
[1749430096363,0.26697251,652.05,651.5,2.29179357]
[1749430096562,0.26697251,652.05,650.96,3.83243957]
[1749430096563,0.26697251,652.05,651.55,2.29179357]
[1749430097469,0.26697251,652.05,651.56,2.29179357]
[1749430097666,1.299,652.04,651.56,2.29179357]
[1749430098670,1.299,652.04,651.57,2.29179357]
[1749430099366,1.299,652.04,651.58,2.29179357]
[1749430100468,1.299,652.04,651.57,2.29179357]
[1749430101773,1.299,652.04,651.58,2.29179357]
[1749430102471,1.299,652.04,651.57,2.29179357]
[1749430103175,1.299,652.04,651.56,2.29179357]
[1749430104573,1.299,652.04,651.57,2.29179357]
[1749430104978,1.299,652.04,651.56,2.29179357]
[1749430106481,1.299,652.04,651.58,2.29179357]
[1749430107285,1.299,652.04,651.57,2.29179357]
[1749430107484,1.299,652.04,651.55,2.29179357]
[1749430107684,1.299,652.04,651.56,2.29179357]
[1749430107887,1.299,652.04,651.57,2.29179357]
[1749430109382,1.299,652.04,651.56,2.29179357]
[1749430109886,1.299,652.04,651.57,2.29179357]
[1749430110486,1.299,652.04,651.56,2.29179357]
[1749430110684,1.299,652.04,651.57,2.29179357]
[1749430111887,1.299,652.04,651.53,2.29179357]
[1749430113783,0.26697251,652.05,651.53,2.29179357]
[1749430114189,2.29037624,652.32,651.53,2.29179357]
[1749430114389,0.26697046,651.93,651.53,2.29179357]
[1749430114791,1.04827086,652.29,651.52,2.29179357]
[1749430115086,0.26695408,651.84,651.52,2.29179357]
[1749430115288,0.30661679,652.28,651.52,2.29179357]
[1749430115490,0.26695817,651.77,651.52,2.29179357]
[1749430115887,0.30661679,652.28,651.52,2.29179357]
[1749430116089,0.26695817,651.71,651.52,2.29179357]
[1749430116292,1.35488765,652.28,651.52,2.29179357]
[1749430116492,0.30661679,652.28,651.52,2.29179357]
[1749430117189,0.26695408,652.1,651.52,2.29179357]
[1749430118291,0.26695408,652.1,651.53,2.29179357]
[1749430121492,0.26695408,652.1,651.57,2.29179357]
[1749430127594,0.26695408,652.1,651.14,3.83243957]
[1749430128898,0.26695408,652.1,650.6,7.66487914]
[1749430129094,0.26695408,652.1,650.62,0.30739909]
[1749430135799,0.26695408,652.1,651.59,2.29265333]
[1749430136899,0.26695408,652.1,651.54,2.29265333]
[1749430138105,0.26695408,652.1,651.55,2.29265333]
[1749430139302,0.26695408,652.1,651.56,2.29265333]
[1749430140507,0.26695408,652.1,651.55,2.29265333]
[1749430141704,0.26695408,652.1,651.56,2.29265333]
[1749430142512,0.26695408,652.1,651.57,2.29265333]
[1749430142706,0.26695408,652.1,651.53,2.29265333]
[1749430142909,0.26695408,652.1,651.62,2.29265333]
[1749430143606,0.26695408,652.1,651.69,2.29265333]
[1749430144012,1.735,652.09,651.69,2.29265333]
[1749430144413,1.735,652.09,651.73,2.29265333]
[1749430144612,1.735,652.09,651.75,2.29265333]
[1749430145112,1.735,652.09,651.73,2.29265333]
[1749430145512,1.735,652.09,651.74,2.29265333]
[1749430145810,1.735,652.09,651.75,2.29265333]
[1749430146212,1.735,652.09,651.73,2.29265333]
[1749430146408,1.735,652.09,651.74,2.29265333]
[1749430147309,1.735,652.09,651.73,2.29265333]
[1749430149008,1.735,652.09,651.77,2.29265333]
[1749430149307,1.735,652.09,651.76,2.29265333]
[1749430149912,1.735,652.09,651.78,2.29265333]
[1749430150210,1.735,652.09,651.77,2.29265333]
[1749430150606,1.735,652.09,651.74,2.29265333]
[1749430150810,1.735,652.09,651.76,2.29265333]
[1749430151007,1.735,652.09,651.74,2.29265333]
[1749430151211,1.735,652.09,651.75,2.29265333]
[1749430151912,1.735,652.09,651.73,2.29265333]
[1749430152110,1.735,652.09,651.72,2.29265333]
[1749430153109,1.735,652.09,651.77,2.29265333]
[1749430153309,1.735,652.09,651.78,2.29265333]
[1749430153910,1.735,652.09,651.79,2.29265333]
[1749430154113,1.735,652.09,651.73,2.29265333]
[1749430154311,1.735,652.09,651.72,2.29265333]
[1749430155015,1.735,652.09,651.74,2.29265333]
[1749430155217,1.735,652.09,651.73,2.29265333]
[1749430156113,1.735,652.09,651.72,2.29265333]
[1749430156712,1.735,652.09,651.71,2.29265333]
[1749430157316,1.735,652.09,651.69,2.29265333]
[1749430157717,1.735,652.09,651.7,2.29265333]
[1749430158020,1.735,652.09,651.72,2.29265333]
[1749430158215,1.735,652.09,651.71,2.29265333]
[1749430159217,1.735,652.09,651.7,2.29265333]
[1749430160121,1.735,652.09,651.68,2.29265333]
[1749430162124,1.735,652.09,651.67,2.29265333]
[1749430163220,1.735,652.09,651.66,2.29265333]
[1749430163924,1.735,652.09,651.52,2.29265333]
[1749430164621,1.735,652.09,651.51,2.29265333]
[1749430164825,1.735,652.09,651.52,2.29265333]
[1749430165122,1.735,652.09,651.51,2.29265333]
[1749430167922,0.26695408,652.1,651.51,2.29265333]
[1749430170026,0.26695408,652.1,651.52,2.29265333]
[1749430170426,1.148,652.09,651.52,2.29265333]
[1749430172832,1.148,652.09,651.53,2.29265333]
[1749430173633,1.148,652.09,651.7,2.29265333]
[1749430175535,1.148,652.09,651.71,2.29265333]
[1749430176038,1.148,652.09,651.72,2.29265333]
[1749430176733,1.148,652.09,651.73,2.29265333]
[1749430177739,1.148,652.09,651.74,2.29265333]
[1749430177935,1.148,652.09,651.66,2.29265333]
[1749430180137,1.148,652.09,651.67,2.29265333]
[1749430180340,1.148,652.09,651.66,2.29265333]
[1749430180538,1.148,652.09,651.73,2.29265333]
[1749430181337,1.148,652.09,651.74,2.29265333]
[1749430182942,1.148,652.09,651.73,2.29265333]
[1749430183542,1.148,652.09,651.74,2.29265333]
[1749430184242,1.148,652.09,651.75,2.29265333]
[1749430185342,1.148,652.09,651.74,2.29265333]
[1749430186942,1.148,652.09,651.75,2.29265333]
[1749430187138,1.148,652.09,651.76,2.29265333]
[1749430187843,1.148,652.09,651.77,2.29265333]
[1749430188139,1.148,652.09,651.82,2.29265333]
[1749430190141,1.148,652.09,651.83,2.29265333]
[1749430191542,1.148,652.09,651.4,3.82108889]
[1749430191543,1.148,652.09,651.84,2.29265333]
[1749430191741,1.148,652.09,651.83,2.29265333]
[1749430192442,1.148,652.09,651.84,2.29265333]
[1749430193350,1.148,652.09,651.85,2.29265333]
[1749430194443,1.148,652.09,651.86,2.29265333]
[1749430195347,1.148,652.09,651.89,2.29265333]
[1749430196348,1.148,652.09,651.9,2.29265333]
[1749430197345,1.148,652.09,651.89,2.29265333]
[1749430197550,0.26695408,652.1,651.9,2.29265333]
[1749430198352,0.26695408,652.1,651.91,2.29265333]
[1749430198951,0.26695408,652.1,650.77,0.26688959]
[1749430198952,0.26695408,652.1,651.9,2.29265333]
[1749430199551,0.26695408,652.1,651.92,2.29265333]
[1749430200354,0.26695408,652.1,651.91,2.29265333]
[1749430201048,0.26695408,652.1,651.92,2.29265333]
[1749430201250,0.26695408,652.1,651.91,2.29265333]
[1749430201651,0.26695408,652.1,651.92,2.29265333]
[1749430202151,0.26695408,652.1,651.94,2.29265333]
[1749430202948,0.26695408,652.1,651.93,2.29265333]
[1749430203153,0.26695408,652.1,651.94,2.29265333]
[1749430203448,0.26695408,652.1,651.93,2.29265333]
[1749430204355,0.26695408,652.1,651.94,2.29265333]
[1749430204653,0.26695408,652.1,651.89,2.29265333]
[1749430208156,0.26695408,652.1,651.9,2.29265333]